bitfinex/quotes_SOLUSD_20220128
["timestamp","ask_amount","ask_price","bid_price","bid_amount"]
[1643379739730,115.15938946,90.277,90.144,35.61416226]
[1643379739930,3.05938946,90.275,90.144,35.61416226]
[1643379740130,16.642,90.24,90.144,35.61416226]
[1643379740330,47.31732633,90.239,90.144,35.61416226]
[1643379740730,47.31732633,90.239,90.144,1.94975937]
[1643379740731,115.05669142,90.238,90.144,1.94975937]
[1643379740931,115.05669142,90.238,90.11,13.58]
[1643379741131,16.646,90.22,90.12,16.643]
[1643379741331,24.6068,90.219,90.11,13.58]
[1643379741532,112.1,90.218,90.11,30.0248]
[1643379741730,112.1,90.218,90.111,39.97053374]
[1643379742130,112.1,90.218,90.121,6.0]
[1643379742732,112.1,90.209,90.121,6.0]
[1643379742932,112.1,90.207,90.121,6.0]
[1643379743133,112.1,90.207,90.111,39.97053374]
[1643379743332,159.4765,90.207,90.111,39.97053374]
[1643379743532,47.3765,90.207,90.111,39.97053374]
[1643379743734,16.644,90.23,90.121,6.0]
[1643379743933,47.3765,90.236,90.121,6.0]
[1643379744135,47.3765,90.236,90.13,6.0]
[1643379744335,6.0,90.226,90.131,0.25]
[1643379744533,47.3765,90.236,90.132,6.0]
[1643379744732,11.67826982,90.235,90.132,7.95783661]
[1643379744934,11.67826982,90.235,90.142,35.35298842]
[1643379745135,112.1,90.234,90.152,6.0]
[1643379745835,112.1,90.234,90.142,35.35298842]
[1643379746034,16.646,90.22,90.142,35.35298842]
[1643379746234,16.646,90.22,90.152,6.0]
[1643379747435,16.646,90.22,90.133,1.95783661]
[1643379747637,2.95669142,90.219,90.11,13.58]
[1643379747837,2.95669142,90.219,90.1,13.58]
[1643379748035,6.0,90.209,90.1,13.58]
[1643379748236,6.0,90.209,90.11,1.95212645]
[1643379748437,6.0,90.209,90.111,40.32857397]
[1643379748638,6.0,90.225,90.111,68.2220915]
[1643379748837,6.0,90.225,90.121,6.0]
[1643379749039,6.0,90.225,90.122,6.0]
[1643379749242,6.0,90.225,90.122,7.95212645]
[1643379749439,23.045,90.224,90.122,6.0]
[1643379749639,23.045,90.224,90.123,1.95212645]
[1643379749839,23.045,90.224,90.122,6.0]
[1643379749840,26.00169142,90.224,90.121,6.0]
[1643379750241,23.045,90.224,90.123,1.95212645]
[1643379750642,23.045,90.224,90.133,6.0]
[1643379751143,23.045,90.224,90.134,19.36385196]
[1643379751543,23.045,90.224,90.145,35.74723111]
[1643379754350,16.645,90.22,90.144,6.0]
[1643379754548,23.045,90.224,90.11,13.58]
[1643379754549,6.0,90.21,90.11,13.58]
[1643379754950,2.95669142,90.219,90.09,13.58]
[1643379755148,112.1,90.223,90.086,6.0]
[1643379755349,112.1,90.208,90.087,39.32203198]
[1643379755575,6.0,90.198,90.087,39.32203198]
[1643379756050,112.1,90.189,90.087,39.32203198]
[1643379756553,27.45439142,90.188,90.087,39.32203198]
[1643379756952,2.95669142,90.187,90.087,39.32203198]
[1643379757548,16.658,90.16,90.087,39.32203198]
[1643379758555,112.1,90.159,90.087,39.32203198]
[1643379759151,16.658,90.16,90.087,39.32203198]
[1643379759556,16.658,90.16,90.081,17.41172551]
[1643379759753,16.658,90.16,90.061,46.6641]
[1643379759754,16.658,90.16,90.061,64.07582551]
[1643379759953,112.1,90.159,90.061,64.07582551]
[1643379760153,16.662,90.14,90.061,64.07582551]
[1643379760556,16.662,90.14,90.062,45.93579192]
[1643379761657,6.0,90.13,90.062,45.93579192]
[1643379762256,16.662,90.14,90.062,45.93579192]
[1643379762457,6.0,90.13,90.062,45.93579192]
[1643379762658,16.662,90.14,90.062,45.93579192]
[1643379763078,112.1,90.138,90.062,45.93579192]
[1643379764678,14.6210249,90.139,90.062,45.93579192]
[1643379764679,16.662,90.14,90.062,45.93579192]
[1643379764875,16.662,90.14,90.062,63.34751743]
[1643379766776,16.662,90.14,90.072,6.0]
[1643379767376,16.662,90.14,90.062,63.34751743]
[1643379767979,22.7638,90.158,90.062,65.30618741]
[1643379768177,22.7638,90.158,90.072,6.0]
[1643379768378,24.0328,90.192,90.08,6.0]
[1643379768578,24.0328,90.192,90.09,13.58]
[1643379768779,24.0328,90.192,90.091,0.25]
[1643379769078,136.1328,90.192,90.1,6.0]
[1643379769278,136.1328,90.192,90.101,0.25]
[1643379769479,136.1328,90.192,90.101,6.25]
[1643379769686,136.1328,90.192,90.102,7.95866998]
[1643379769878,136.1328,90.192,90.111,6.0]
[1643379770079,136.1328,90.192,90.103,0.25]
[1643379770080,136.1328,90.192,90.112,6.0]
[1643379770481,136.1328,90.192,90.113,6.0]
[1643379770881,3.05938946,90.234,90.113,6.0]
[1643379771080,50.8859289,90.236,90.114,19.62039549]
[1643379771285,47.813,90.236,90.114,19.62039549]
[1643379771479,47.813,90.236,90.124,6.0]
[1643379771681,47.813,90.236,90.13,13.58]
[1643379771882,112.1,90.235,90.131,0.25]
[1643379772182,112.1,90.235,90.14,6.0]
[1643379772379,112.1,90.235,90.141,0.25]
[1643379772579,112.1,90.235,90.142,6.0]
[1643379772983,6.0,90.225,90.142,6.0]
[1643379773182,23.4412,90.224,90.142,6.0]
[1643379773381,23.4412,90.224,90.14,6.0]
[1643379773581,112.1,90.223,90.14,6.0]
[1643379774282,112.1,90.223,90.13,13.58]
[1643379774483,112.1,90.223,90.14,6.0]
[1643379775084,112.1,90.223,90.141,6.0]
[1643379775884,16.645,90.22,90.13,13.58]
[1643379776085,3.69689339,90.212,90.14,6.0]
[1643379776287,3.69689339,90.212,90.13,13.58]
[1643379777088,3.69689339,90.212,90.11,13.58]
[1643379777289,3.69689339,90.212,90.07,55.497]
[1643379777486,3.69689339,90.212,90.09,13.58]
[1643379778089,16.651,90.19,90.093,1.95358009]
[1643379778486,6.0,90.18,90.093,1.95358009]
[1643379778687,23.7645,90.211,90.1,13.58]
[1643379779487,112.1,90.21,90.1,13.58]
[1643379779790,16.649,90.2,90.1,30.228]
[1643379779987,112.1,90.199,90.1,30.228]
[1643379780588,112.1,90.199,90.1,13.58]
[1643379781191,23.7645,90.211,90.1,13.58]
[1643379781588,23.7645,90.211,90.106,16.3393]
[1643379781788,23.7645,90.211,90.127,1.96027919]
[1643379782190,23.7645,90.211,90.117,17.41172551]
[1643379782790,16.648,90.21,90.11,13.58]
[1643379783291,135.8645,90.211,90.11,13.58]
[1643379783489,2.95669142,90.21,90.11,13.58]
[1643379784190,112.1,90.199,90.107,24.7097]
[1643379784689,6.0,90.2,90.107,24.7097]
[1643379784893,16.648,90.21,90.117,17.75543525]
[1643379785089,16.648,90.21,90.124,17.41172551]
[1643379785590,6.0,90.2,90.11,13.58]
[1643379785790,6.0,90.2,90.106,16.3393]
[1643379786191,112.1,90.199,90.106,16.3393]
[1643379786390,6.0,90.2,90.106,16.3393]
[1643379786592,23.7645,90.211,90.106,16.3393]
[1643379787092,16.649,90.2,90.106,16.3393]
[1643379787693,6.0,90.19,90.106,16.3393]
[1643379788296,22.651,90.19,90.104,17.41172551]
[1643379788498,112.1,90.189,90.09,23.3073872]
[1643379788696,112.1,90.189,90.114,6.0]
[1643379789097,112.1,90.189,90.09,13.58]
[1643379789098,6.0,90.19,90.09,13.58]
[1643379789296,6.0,90.19,90.1,6.0]
[1643379789297,112.1,90.189,90.1,6.0]
[1643379789497,112.1,90.189,90.101,45.57041046]
[1643379789696,112.1,90.189,90.101,47.53068965]
[1643379790100,112.1,90.179,90.101,45.57041046]
[1643379790298,112.1,90.177,90.101,45.57041046]
[1643379791499,112.1,90.169,90.101,45.57041046]
[1643379792908,11.16888521,90.178,90.101,45.57041046]
[1643379793108,16.657,90.16,90.101,45.57041046]
[1643379793911,111.042,90.31,90.101,45.57041046]
[1643379793912,1.53580716,90.198,90.101,47.53068965]
[1643379794110,1.53580716,90.219,90.111,6.0]
[1643379794311,55.491,90.23,90.112,22.9405]
[1643379794312,1.53580716,90.216,90.112,22.9405]
[1643379794510,1.53580716,90.211,90.12,6.0]
[1643379794710,1.53580716,90.208,90.122,6.0]
[1643379794912,1.53580716,90.208,90.11,13.58]
[1643379795313,112.1,90.197,90.12,6.0]
[1643379795710,16.651,90.19,90.121,6.0]
[1643379796211,16.651,90.19,90.12,6.0]
[1643379796711,16.651,90.19,90.112,6.0]
[1643379796932,16.651,90.19,90.121,1.96027919]
[1643379797129,6.0,90.198,90.121,1.96027919]
[1643379797832,6.0,90.198,90.132,44.53321105]
[1643379798830,1.53580716,90.205,90.132,44.53321105]
[1643379799031,16.649,90.2,90.132,44.53321105]
[1643379801834,1.53580716,90.205,90.132,46.50019003]
[1643379802032,1.53580716,90.205,90.142,6.0]
[1643379802232,1.53580716,90.217,90.142,6.0]
[1643379802432,112.1,90.246,90.142,6.0]
[1643379802433,1.53580716,90.224,90.143,1.97367808]
[1643379802633,1.53580716,90.229,90.153,6.0]
[1643379802832,1.53580716,90.232,90.154,0.25]
[1643379803035,1.53580716,90.232,90.16,6.0]
[1643379803332,1.53580716,90.234,90.16,6.0]
[1643379803533,1.53580716,90.236,90.165,50.93442491]
[1643379803732,14.6060185,90.242,90.165,44.93442491]
[1643379803733,1.53580716,90.237,90.165,44.93442491]
[1643379803932,1.53580716,90.237,90.175,6.0]
[1643379804544,1.53580716,90.243,90.175,6.0]
[1643379804940,160.648,90.266,90.165,44.93442491]
[1643379804941,1.53580716,90.238,90.165,44.93442491]
[1643379805240,1.53580716,90.237,90.165,44.93442491]
[1643379806242,18.17780716,90.24,90.165,44.93442491]
[1643379806443,16.642,90.24,90.166,1.97367808]
[1643379807145,112.1,90.239,90.166,1.97367808]
[1643379807342,6.0,90.23,90.165,44.93442491]
[1643379807543,112.1,90.229,90.165,44.93442491]
[1643379807744,6.0,90.23,90.165,44.93442491]
[1643379808745,112.1,90.229,90.165,44.93442491]
[1643379809849,22.644,90.23,90.165,44.93442491]
[1643379810050,16.644,90.23,90.165,44.93442491]
[1643379810550,16.646,90.22,90.143,16.3423]
[1643379810754,16.646,90.22,90.11,13.58]
[1643379810755,6.0,90.22,90.11,13.58]
[1643379810954,6.0,90.22,90.097,16.4693]
[1643379810955,23.0646,90.219,90.104,1.50531765]
[1643379811155,113.63580716,90.218,90.097,16.4693]
[1643379811354,1.53580716,90.203,90.097,16.4693]
[1643379811560,16.651,90.19,90.098,49.29086327]
[1643379811953,16.651,90.19,90.084,10.53717022]
[1643379812154,2.95669142,90.189,90.071,40.70832551]
[1643379812352,1.53580716,90.186,90.071,40.70832551]
[1643379812753,1.53580716,90.185,90.071,40.70832551]
[1643379813153,1.53580716,90.185,90.072,46.71834132]
[1643379813357,1.53580716,90.186,90.072,46.71834132]
[1643379814055,16.657,90.16,90.072,46.71834132]
[1643379814256,16.657,90.16,90.072,64.13006683]
[1643379814257,36.8297607,90.159,90.072,64.13006683]
[1643379814955,36.8297607,90.159,90.072,46.71834132]
[1643379815157,6.0,90.149,90.072,46.71834132]
[1643379815356,112.1,90.148,90.072,46.71834132]
[1643379815579,6.0,90.149,90.072,46.71834132]
[1643379816781,16.66,90.14,90.056,17.78584081]
[1643379816982,16.66,90.14,90.007,11.58535126]
[1643379816983,10.66412,90.139,90.042,1.97367808]
[1643379817184,89.61441142,90.139,89.994,1.50531765]
[1643379817383,1.53580716,90.128,89.994,1.50531765]
[1643379817583,1.53580716,90.12,89.987,1.50531765]
[1643379817783,3.11845236,90.119,89.988,35.87737138]
[1643379817982,16.67,90.11,89.988,35.87737138]
[1643379818183,16.67,90.11,89.989,24.2706]
[1643379818384,16.67,90.11,89.998,6.0]
[1643379818587,6.0,90.1,89.999,6.0]
[1643379818886,6.0,90.1,90.0,0.25]
[1643379819085,23.7509,90.118,90.001,26.36686653]
[1643379819288,23.7509,90.118,90.01,13.58]
[1643379819484,23.7509,90.118,90.011,6.0]
[1643379819685,23.7509,90.118,90.02,6.0]
[1643379819890,23.5302,90.137,90.021,40.08910412]
[1643379820086,16.657,90.16,90.05,16.658]
[1643379820287,1.53580716,90.189,90.06,13.58]
[1643379820486,48.6431,90.196,90.061,48.706]
[1643379820685,48.6431,90.196,90.061,48.956]
[1643379820887,48.6431,90.196,90.071,6.0]
[1643379821188,12.7812945,90.195,90.072,54.36789262]
[1643379821387,6.0,90.186,90.072,48.61789262]
[1643379821585,6.0,90.186,90.082,6.0]
[1643379821985,16.653,90.18,90.083,6.0]
[1643379823390,22.8275,90.179,90.083,6.0]
[1643379824393,22.8275,90.179,90.084,0.25]
[1643379825994,22.8275,90.179,90.09,6.0]
[1643379826397,22.8275,90.179,90.091,0.25]
[1643379826594,22.8275,90.179,90.09,6.0]
[1643379826794,22.8275,90.179,90.091,0.25]
[1643379827597,22.8275,90.179,90.09,6.0]
[1643379828097,16.653,90.18,90.09,6.0]
[1643379828800,16.653,90.18,90.091,0.25]
[1643379829000,16.63129824,90.18,90.092,6.0]
[1643379829401,12.7812945,90.195,90.093,0.25]
[1643379829700,23.8892,90.196,90.093,26.88987808]
[1643379829900,23.8892,90.196,90.094,1.97367808]
[1643379830101,55.498,90.22,90.104,6.0]
[1643379830303,22.925,90.219,90.105,48.4361]
[1643379830505,22.925,90.219,90.105,48.6861]
[1643379830705,22.925,90.219,90.116,36.04378869]
[1643379830706,10.63445711,90.218,90.116,36.04378869]
[1643379830904,22.5128,90.217,90.116,36.04378869]
[1643379831108,16.65,90.2,90.126,6.0]
[1643379831515,24.8952,90.199,90.116,36.04378869]
[1643379831911,112.1,90.198,90.116,36.04378869]
[1643379832313,112.1,90.189,90.116,36.04378869]
[1643379832512,4.49695595,90.188,90.116,36.04378869]
[1643379832712,112.1,90.187,90.116,36.04378869]
[1643379833513,29.25595595,90.188,90.052,1.50531765]
[1643379833514,112.1,90.179,90.06,16.655]
[1643379833714,112.1,90.179,90.06,13.58]
[1643379834335,112.1,90.179,90.061,37.3805342]
[1643379834535,6.0,90.169,90.061,37.3805342]
[1643379834936,24.5866,90.168,90.071,6.0]
[1643379835137,10.63445711,90.159,90.071,6.0]
[1643379835538,24.9195,90.158,90.071,6.0]
[1643379835937,24.9195,90.158,90.061,37.3805342]
[1643379836138,16.659,90.15,90.061,37.3805342]
[1643379836338,112.1,90.149,90.061,37.3805342]
[1643379838138,24.0403,90.157,90.061,37.3805342]
[1643379839140,6.0,90.147,90.061,37.3805342]
[1643379839541,16.661,90.14,90.061,37.3805342]
[1643379839942,112.1,90.138,90.061,37.3805342]
[1643379840344,112.1,90.138,90.041,45.5618]
[1643379840544,16.663,90.13,90.026,1.50531765]
[1643379840743,16.663,90.13,90.017,1.50531765]
[1643379841045,25.86889142,90.129,90.006,1.50531765]
[1643379841244,25.86889142,90.129,90.003,1.50531765]
[1643379841545,32.21434737,90.128,90.002,39.04608199]
[1643379841744,16.67,90.1,90.002,39.04608199]
[1643379841946,10.63445711,90.099,90.012,6.0]
[1643379842543,6.0,90.089,90.015,6.0]
[1643379843142,6.0,90.089,90.017,6.0]
[1643379843343,6.0,90.089,90.005,1.50531765]
[1643379843344,112.1,90.088,90.005,1.50531765]
[1643379843743,112.1,90.088,90.002,39.04608199]
[1643379844843,112.1,90.088,89.991,23.1438]
[1643379845045,16.671,90.08,89.989,1.50531765]
[1643379845246,16.671,90.08,89.977,1.50531765]
[1643379845546,6.0,90.089,89.987,6.0]
[1643379845547,136.2174,90.079,89.987,6.0]
[1643379845746,136.2174,90.079,89.98,6.0]
[1643379845948,136.2174,90.079,89.981,37.74454084]
[1643379846146,136.2174,90.079,89.991,6.0]
[1643379846346,11.60361914,90.087,89.992,0.25]
[1643379846547,1.53580716,90.099,89.992,112.1]
[1643379846747,1.53580716,90.14,89.994,112.1]
[1643379846947,23.1548,90.136,90.003,112.1]
[1643379847150,23.1548,90.136,90.013,6.0]
[1643379847351,11.97796859,90.135,90.014,43.64015463]
[1643379847549,16.663,90.13,90.024,6.0]
[1643379847948,16.663,90.13,90.03,6.0]
[1643379848148,16.663,90.13,90.035,6.0]
[1643379848350,11.97796859,90.135,90.04,13.58]
[1643379848649,11.97796859,90.135,90.051,44.35341528]
[1643379849052,112.1,90.134,90.051,44.35341528]
[1643379849250,112.1,90.134,90.031,1.98662973]
[1643379849449,112.1,90.132,90.016,48.5263]
[1643379849651,112.1,90.132,89.993,1.50531765]
[1643379849848,112.1,90.132,89.989,1.98662973]
[1643379849849,24.8279,90.131,89.994,0.25]
[1643379850050,16.667,90.11,89.994,2.23662973]
[1643379850251,112.1,90.108,89.995,22.5641]
[1643379850451,3.15344447,90.107,89.995,36.52036662]
[1643379850750,3.15344447,90.107,89.996,1.99323832]
[1643379851255,16.669,90.1,89.996,1.99323832]
[1643379851450,16.669,90.1,89.995,22.5641]
[1643379852455,112.1,90.099,89.996,1.99323832]
[1643379852654,112.1,90.099,89.996,14.20626662]
[1643379852856,112.1,90.099,90.006,6.0]
[1643379853053,112.1,90.099,89.997,13.95626662]
[1643379853253,112.1,90.099,90.007,7.99323832]
[1643379853656,112.1,90.088,90.008,1.99323832]
[1643379854055,6.0,90.078,90.008,1.99323832]
[1643379854257,11.97796859,90.077,90.008,1.99323832]
[1643379854760,1.53580716,90.129,90.01,13.58]
[1643379854957,1.53580716,90.158,90.019,112.1]
[1643379855157,1.53580716,90.158,90.03,13.58]
[1643379855356,1.53580716,90.158,90.031,0.25]
[1643379855559,1.53580716,90.164,90.04,6.0]
[1643379855758,11.74666605,90.157,90.041,45.9893]
[1643379855957,16.663,90.14,90.041,54.23253832]
[1643379856156,112.1,90.139,90.051,6.0]
[1643379856357,6.0,90.147,90.052,0.25]
[1643379856556,6.0,90.147,90.052,20.20626662]
[1643379856756,11.74666605,90.157,90.053,16.92290712]
[1643379856958,23.2107,90.176,90.053,16.92290712]
[1643379856959,1.53580716,90.176,90.063,6.0]
[1643379857158,1.53580716,90.198,90.071,112.1]
[1643379857465,48.7986,90.199,90.072,49.2981]
[1643379857657,48.7986,90.199,90.081,6.0]
[1643379857857,14.00188512,90.198,90.082,42.01324069]
[1643379858058,1.53580716,90.196,90.092,6.0]
[1643379858260,113.63580716,90.197,90.092,6.0]
[1643379858458,6.0,90.186,90.092,6.0]
[1643379858662,23.4152,90.185,90.093,6.0]
[1643379858857,6.0,90.176,90.093,6.0]
[1643379859259,6.0,90.176,90.094,14.20626662]
[1643379859658,6.0,90.176,90.095,1.99323832]
[1643379860258,112.1,90.175,90.095,1.99323832]
[1643379862761,112.1,90.175,90.096,0.25]
[1643379863159,112.1,90.175,90.097,1.99323832]
[1643379863361,112.1,90.175,90.098,0.25]
[1643379863762,23.4152,90.185,90.098,0.25]
[1643379863962,23.4152,90.185,90.098,12.2130283]
[1643379864361,23.4152,90.185,90.108,6.0]
[1643379864561,1.53580716,90.2,90.109,6.0]
[1643379864761,1.53580716,90.2,90.109,85.67762466]
[1643379864972,74.4017,90.224,90.11,11.9630283]
[1643379864973,1.53580716,90.205,90.11,11.9630283]
[1643379865164,1.53580716,90.206,90.11,11.9630283]
[1643379865362,13.5354638,90.204,90.12,6.0]
[1643379865564,13.5354638,90.204,90.121,6.0]
[1643379865762,13.5354638,90.204,90.121,6.25]
[1643379866262,13.5354638,90.204,90.122,11.9630283]
[1643379866463,112.1,90.203,90.122,11.9630283]
[1643379866662,112.1,90.203,90.132,6.0]
[1643379866861,112.1,90.203,90.111,42.40475053]
[1643379866862,112.1,90.203,90.109,67.46459636]
[1643379867063,112.1,90.192,90.109,49.3422]
[1643379867963,158.5112,90.192,90.11,40.09530699]
[1643379868564,158.5112,90.192,90.109,49.3422]
[1643379868964,16.652,90.19,90.109,49.3422]
[1643379870965,112.1,90.189,90.109,49.3422]
[1643379871165,16.652,90.18,90.109,49.3422]
[1643379871364,16.652,90.18,90.1,11.9630283]
[1643379871563,112.1,90.179,90.1,11.9630283]
[1643379872967,16.652,90.18,90.1,11.9630283]
[1643379874465,112.1,90.179,90.1,11.9630283]
[1643379874665,16.654,90.17,90.1,11.9630283]
[1643379874866,1.59594926,90.169,90.1,11.9630283]
[1643379875268,187.1,90.166,90.018,2.97636831]
[1643379875473,187.1,90.166,89.955,17.0545]
[1643379875474,5.79974565,90.029,89.959,4.44097148]
[1643379875667,5.79974565,90.029,89.941,89.4276]
[1643379876167,2.03943127,90.028,89.97,47.11752457]
[1643379876368,2.03943127,90.028,89.941,89.4276]
[1643379876568,2.03943127,90.028,89.941,16.9035]
[1643379877170,5.79974565,90.029,89.941,16.9035]
[1643379877369,13.58,90.1,89.95,16.674]
[1643379877568,13.58,90.13,89.96,19.58]
[1643379877770,13.58,90.14,89.97,13.58]
[1643379877971,13.58,90.14,89.971,112.1]
[1643379878168,13.58,90.14,89.98,6.0]
[1643379878371,23.5497,90.139,89.981,6.25]
[1643379878570,23.5497,90.139,89.991,6.0]
[1643379878771,24.5702,90.138,89.991,6.0]
[1643379878970,16.668,90.09,89.991,6.0]
[1643379879170,16.668,90.09,89.993,43.07729329]
[1643379879374,24.5702,90.138,89.994,112.1]
[1643379879573,24.5702,90.138,90.004,6.0]
[1643379880178,24.5702,90.138,90.005,8.24323832]
[1643379880376,25.75762193,90.073,90.005,2.24323832]
[1643379880578,25.75762193,90.073,90.016,40.93428261]
[1643379880976,2.57819072,90.073,90.026,6.0]
[1643379881779,2.57819072,90.073,90.016,40.93428261]
[1643379881981,2.57819072,90.073,90.027,1.99323832]
[1643379882582,2.57819072,90.073,89.997,1.99992356]
[1643379882783,2.57819072,90.073,90.001,0.25]
[1643379882983,2.57819072,90.073,90.007,6.0]
[1643379883395,2.57819072,90.073,90.008,0.25]
[1643379883796,16.671,90.07,90.007,6.0]
[1643379883997,16.671,90.07,90.011,6.0]
[1643379884596,16.671,90.07,90.019,42.12573253]
[1643379885000,2.57819072,90.073,90.029,6.0]
[1643379886400,16.668,90.09,90.029,6.0]
[1643379886601,72.9646,90.118,90.03,0.25]
[1643379886803,112.1,90.148,90.03,0.25]
[1643379887007,112.1,90.148,90.039,6.0]
[1643379887401,3.36386406,90.137,90.042,49.31747056]
[1643379887603,3.36386406,90.137,90.052,6.0]
[1643379887805,3.36386406,90.137,90.053,0.25]
[1643379888003,16.66,90.13,90.053,6.25]
[1643379888204,16.66,90.13,90.053,8.25660649]
[1643379888407,16.66,90.13,90.054,2.00660649]
[1643379888805,16.66,90.13,90.055,0.25]
[1643379889006,16.66,90.13,90.032,2.00660649]
[1643379889406,112.1,90.129,90.015,2.00660649]
[1643379889606,16.667,90.1,90.025,6.0]
[1643379890007,16.667,90.1,90.026,47.92217637]
[1643379890707,16.667,90.1,90.036,6.0]
[1643379891109,16.667,90.1,90.037,6.0]
[1643379891312,16.667,90.1,90.037,8.00660649]
[1643379891710,16.667,90.1,90.037,6.0]
[1643379892210,16.667,90.1,90.036,6.0]
[1643379894710,16.668,90.09,90.036,6.0]
[1643379895111,112.1,90.089,90.026,2.00660649]
[1643379895313,112.1,90.089,90.01,2.00660649]
[1643379895513,112.1,90.089,90.002,0.25]
[1643379896314,16.67,90.08,90.002,0.25]
[1643379896713,16.67,90.08,89.99,6.0]
[1643379896913,16.67,90.08,89.991,0.25]
[1643379897114,16.67,90.08,89.99,6.0]
[1643379897318,16.67,90.08,89.982,6.0]
[1643379897514,16.67,90.08,89.983,38.84368687]
[1643379898014,112.1,90.079,89.983,38.84368687]
[1643379898214,16.672,90.07,89.983,38.84368687]
[1643379898419,16.672,90.07,89.993,6.0]
[1643379898816,16.672,90.07,89.994,2.26328803]
[1643379899213,16.672,90.07,89.995,2.01328803]
[1643379899415,16.672,90.07,89.996,0.25]
[1643379900515,16.673,90.06,89.996,0.25]
[1643379900921,16.673,90.06,89.94,16.675]
[1643379901118,16.673,90.06,89.938,23.3155]
[1643379901317,16.673,90.06,89.971,6.0]
[1643379901917,16.673,90.06,89.972,45.46621948]
[1643379902117,16.671,90.08,89.972,47.47950751]
[1643379902318,16.671,90.08,89.982,6.0]
[1643379902717,16.671,90.08,89.983,2.26328803]
[1643379902918,16.671,90.08,89.983,8.26328803]
[1643379903118,16.671,90.08,89.994,38.2154961]
[1643379903317,16.671,90.08,89.995,0.25]
[1643379904316,16.671,90.08,89.993,6.0]
[1643379904516,16.671,90.08,89.95,13.58]
[1643379904717,16.676,90.05,89.96,16.674]
[1643379904916,16.676,90.05,89.96,22.674]
[1643379905321,16.676,90.05,89.961,0.25]
[1643379905520,16.676,90.05,89.961,38.51257201]
[1643379905719,16.672,90.07,89.962,2.01328803]
[1643379905920,55.573,90.09,89.971,6.0]
[1643379906125,23.0854,90.099,89.972,6.0]
[1643379906321,23.0854,90.099,89.973,0.25]
[1643379906520,23.0854,90.099,89.98,6.0]
[1643379906921,16.668,90.09,89.99,16.668]
[1643379907121,16.668,90.09,90.001,47.16627722]
[1643379907322,16.668,90.09,90.002,0.25]
[1643379907522,16.668,90.09,90.011,6.0]
[1643379907822,16.668,90.09,90.012,0.25]
[1643379908023,16.668,90.09,90.012,6.25]
[1643379908222,16.668,90.09,90.012,0.25]
[1643379910857,16.668,90.09,90.011,8.01164172]
[1643379911160,16.67,90.08,90.001,47.16627722]
[1643379911358,16.67,90.08,90.002,0.25]
[1643379911756,16.67,90.08,90.011,6.0]
[1643379912158,16.67,90.08,90.012,0.25]
[1643379912558,16.67,90.08,90.013,6.0]
[1643379912758,16.67,90.08,90.014,0.25]
[1643379912959,16.67,90.08,90.013,6.0]
[1643379913158,16.67,90.08,90.014,0.25]
[1643379914160,23.7899,90.087,90.014,0.25]
[1643379914360,23.7899,90.087,90.012,0.25]
[1643379915164,23.7899,90.087,90.011,6.0]
[1643379915361,112.1,90.086,90.011,6.0]
[1643379915562,23.7899,90.087,90.011,6.0]